Cogmind - Beta 15 @@@ ROGUE MODE // 2025.08.17 @ 16:25:27 Player: puppuppit Result: Destroyed by as-86496 with Assembled F-torch Performance ------------- Evolutions (0) 0 Regions Visited (2) 400 Robots Destroyed (30) 150 Value Destroyed (489) 489 Prototype IDs (0) 0 Alien Tech Used (0) 0 Bonus (74) 74 TOTAL SCORE: 1113 Bonus ------- Follower Combat Kills 74 Cogmind --------- Core Integrity 0/250 Matter 268/300 Energy 100/100 System Corruption 1% Temperature Cool (20) Movement Hovering (80) Location -10/Mines Parts ------- > --- POWER (1) -------- (None) > --- PROPULSION (2) --- Combat Airjet > --- UTILITY (2) ------ Core Shielding > --- WEAPON (2) ------- Light Assault Rifle Light Assault Rifle > --- INVENTORY (5) ---- Improved Heat Sink Improved Heat Sink High-capacity Matter Pod (200) Weapon Shielding Light Assault Rifle Peak State ------------ > --- POWER ------------ (None) > --- PROPULSION ------- Combat Airjet > --- UTILITY ---------- Large Storage Unit Core Shielding > --- WEAPON ----------- Light Assault Rifle Light Assault Rifle > --- INVENTORY -------- Improved Heat Sink Improved Heat Sink Medium Matter Pod High-capacity Matter Pod Weapon Shielding Weapon Shielding Tractor Beam Light Assault Rifle Grenade Launcher [Rating: 10] Favorites ----------- Power Light Ion Engine Engine Light Ion Engine Propulsion Light Treads Treads Light Treads Hover Unit Combat Airjet Utility Large Storage Unit Device Improved Terrain Scanner Storage Large Storage Unit Protection Weapon Shielding Weapon Light Assault Rifle Ballistic Gun Light Assault Rifle Build | -11 -10 -10 ------- Run | Yrd Mat Min Slots Evolved . | . . . Power . | . . . Propulsion . | . . . Utility . | . . . Weapon . | . . . Parts Attached 16 | 7 5 4 Power 2 | 1 1 . Engine 2 | 1 1 . Core . | . . . Reactor . | . . . Propulsion 4 | 2 1 1 Treads 3 | 2 1 . Leg . | . . . Wheel . | . . . Hover 1 | . . 1 Flight . | . . . Utility 5 | 2 2 1 Device 1 | 1 . . Storage 2 | 1 1 . Processor . | . . . Hackware . | . . . Protection 2 | . 1 1 Artifact . | . . . Weapon 5 | 2 1 2 Energy Gun . | . . . Energy Cannon . | . . . Ballistic Gun 5 | 2 1 2 Ballistic Cannon . | . . . Launcher . | . . . Special Weapon . | . . . Impact Weapon . | . . . Slashing Weapon . | . . . Piercing Weapon . | . . . Special Melee Weapon . | . . . Unidentified Prototypes . | . . . Parts Lost 9 | . 2 7 Power 1 | . . 1 Propulsion 3 | . 1 2 Utility 2 | . 1 1 Weapon 3 | . . 3 Highest Loss Streak 7 | . 1 7 To Critical Strikes . | . . . Average Backups 9 | . 9 12 Power . | . . . Propulsion . | . . . Utility 5 | . 4 8 Weapon 3 | . 3 4 Tool/Special . | . . . Unused Backups 12 | . 2 10 Power . | . . . Propulsion . | . . . Utility 10 | . 2 8 Weapon 2 | . . 2 Tool/Special . | . . . Average Slot Usage (%) 95 | . 97 92 Engine 13 | . 14 10 Treads 26 | . 27 22 Device 2 | . 3 . Storage 13 | . 14 13 Protection 9 | . 8 14 Ballistic Gun 28 | . 28 28 Peak Build Rating 10 | 9 9 10 Average Rating 7 | 6 7 7 On Entrance 5 | . 9 8 Naked Turns . | . . . Heaviest Build 27 | 11 27 27 Greatest Support 40 | 40 40 40 Greatest Overweight (x) 7 | . . 7 Average Overweight (x) . | . . . Largest Inventory Capacity 15 | 8 15 15 Average Capacity 12 | 7 12 14 Most Carried 14 | 2 14 14 Average Carried 9 | . 9 12 Final Capacity 15 | 8 15 5 Final Carried 13 | 2 13 5 Class Distribution -------------------- 100% | Mutant Dominant Class ---------------- Mutant | -10/Materials Mutant | -10/Mines Resources | -11 -10 -10 ----------- Run | Yrd Mat Min Matter Collected 1108 | 378 601 129 Remotely . | . . . Salvage Created 953 | 231 640 82 Parts 76 | 25 46 5 Haulers Intercepted 1 | . 1 . Recyclers Shooed 3 | . 3 . Parts Field Recycled . | . . . Retrieved Matter . | . . . Parts Self-Destructed . | . . . Prevented . | . . . Kills | -11 -10 -10 ------- Run | Yrd Mat Min Combat Hostiles Destroyed 14 | . 11 3 Guns 14 | . 11 3 Classes Destroyed 10 | 3 5 2 Worker 5 | 2 3 . Builder 1 | . 1 . Tunneler 6 | 5 1 . Hauler 1 | . 1 . Recycler 2 | 1 1 . Watcher 2 | . 2 . Swarmer 4 | . 3 1 Grunt 8 | . 8 . Demolisher 1 | . . 1 Assembled 1 | . . 1 Best Kill Streak 4 | 4 4 1 Combat Bots Only 2 | . 2 1 Max Kills in Single Turn 2 | 1 2 1 Gunslinging . | . . . Exploded . | . . . Melee . | . . . Uniques/NPCs Destroyed . | . . . Combat | -11 -10 -10 -------- Run | Yrd Mat Min Hostile Shots Fired 101 | . 77 24 Missed 35 | . 27 8 Hits 66 | . 50 16 Melee 2 | . . 2 Projectile 64 | . 50 14 AOE 13 | . . 13 Critical Strikes 1 | . 1 . Damage Taken 1223 | . 567 656 Core 257 | . 85 172 Absorbed by Shields . | . . . Redirected to Shielding 80 | . 30 50 Core Remaining (%) 100 | 100 . . Volleys Fired 108 | 22 72 14 Largest 2 | 2 2 2 Hottest 40 | 40 40 40 Shots Fired 215 | 44 145 26 Gun 215 | 44 145 26 Cannon . | . . . Launcher . | . . . Special . | . . . Kinetic 215 | 44 145 26 Thermal . | . . . Explosive . | . . . Electromagnetic . | . . . Robot Hit Streak 10 | 9 10 7 Robot Miss Streak 7 | 2 6 7 Penetration Max . | . . . Secondary Targets 1 | . 1 . Max Gunslinging Chain 1 | . 1 . Shots Hit Robots 124 | 28 81 15 Core Hits 59 | 13 37 9 Critical Kills . | . . . Critical Parts Destroyed 1 | . 1 . Critical Strikes 1 | . 1 . Destroy 1 | . 1 . Melee Attacks . | . . . Impact . | . . . Slashing . | . . . Piercing . | . . . Sneak Attacks . | . . . Combat Hostiles . | . . . Follow-up Attacks . | . . . Damage Inflicted 1187 | 226 808 153 Guns 1187 | 226 808 153 Cannons . | . . . Explosions . | . . . Melee . | . . . Ramming . | . . . Kinetic 1187 | 226 808 153 Thermal . | . . . Explosive . | . . . Electromagnetic . | . . . Impact . | . . . Slashing . | . . . Piercing . | . . . Highest Corruption 1 | . 1 1 Average Corruption 1 | . 1 1 Corruption Purged . | . . . Corruption Blocked . | . . . Effects 5 | . 2 3 Matter Fused 3 | . 1 2 Misfires 1 | . 1 . Weapon Failures 1 | . . 1 Overload Shots . | . . . Overflow Damage . | . . . Projectiles . | . . . Explosions . | . . . Melee . | . . . Knockbacks . | . . . Impact . | . . . Kinetic . | . . . Secondary . | . . . Self-Inflicted Damage . | . . . Shots . | . . . Rammed . | . . . Targets Rammed . | . . . Kicked . | . . . Crushed . | . . . Highest Temperature 33 | . 33 . Average Temperature 8 | . 8 . Received Heat Transfer 281 | . 261 20 Siege Activations . | . . . Martial Activations . | . . . Shielding Activations . | . . . Robots Disrupted . | . . . Combat Hostiles . | . . . Robots Corrupted . | . . . Combat Hostiles . | . . . Parts Fried . | . . . Impact Corruptions . | . . . Robots Melted . | . . . Combat Hostiles . | . . . Parts Melted . | . . . Heat Transferred . | . . . Parts Sabotaged . | . . . Parts Stolen . | . . . Parts Stripped . | . . . Power Chain Reactions . | . . . Alert | -11 -10 -10 ------- Run | Yrd Mat Min Maximum Alert Level . | . . . Low Security (%) 100 | 100 100 100 Level 1 . | . . . Level 2 . | . . . Level 3 . | . . . Level 4 . | . . . Level 5 . | . . . High Security . | . . . Max Security . | . . . Peak Influence 125 | 10 125 68 Initial 19 | . . 19 Average 38 | 2 49 24 Influence Increases 624 | 40 416 168 Destroy 0b10 Robot/C 340 | . 220 120 Destroy 0b10 Robot/NC 85 | 40 45 . Destroy Leader 96 | . 66 30 Allied During Kill 18 | . . 18 Successful Hack 10 | . 10 . Partial Spotted 15 | . 15 . Lose Combat Pursuer 60 | . 60 . Influence Decreases 624 | 40 364 220 Entered New Map 33 | . . 33 Time Decay 523 | 40 344 139 Lost Part 20 | . 20 . Lost Ally 48 | . . 48 Squads Dispatched 3 | . 3 . Investigation 2 | . 2 . Extermination . | . . . Reinforcement 1 | . 1 . Assault . | . . . Garrison . | . . . Intercept . | . . . Searches Triggered . | . . . Construction Impeded . | . . . Haulers Reinforced . | . . . Active Scanning Responses . | . . . Cargo Convoy Interrupts . | . . . Stealth | -11 -10 -10 --------- Run | Yrd Mat Min Distress Signals . | . . . Communications Jammed . | . . . Distress Signals . | . . . Times Spotted 30 | . 18 12 Peak Tracking Total 3 | . 3 3 Tactical Retreats 5 | . 3 2 Traps | -11 -10 -10 ------- Run | Yrd Mat Min Traps Triggered 3 | . 3 . Indirectly . | . . . Trap Hack Attempts . | . . . Triggered . | . . . Disarmed . | . . . Reprogrammed . | . . . Reused . | . . . Traps Extracted . | . . . Installed . | . . . Triggered . | . . . Machines | -11 -10 -10 ---------- Run | Yrd Mat Min Machines Disabled . | . . . Max in Single Turn . | . . . Machines Repaired . | . . . Machines Dismantled . | . . . Machines Sabotaged . | . . . Overloaded Fab Kills . | . . . Hacking | -11 -10 -10 --------- Run | Yrd Mat Min Machines Accessed 5 | . 5 . Terminals 4 | . 4 . Fabricators . | . . . Repair Stations . | . . . Recycling Units 1 | . 1 . Scanalyzers . | . . . Garrison Access . | . . . Total Hacks 16 | . 16 . Successful 5 | . 5 . Failed 11 | . 11 . Catastrophic . | . . . Database Lockouts . | . . . Manual 14 | . 14 . Terminals 13 | . 13 . Fabricators . | . . . Repair Stations . | . . . Recycling Units 3 | . 3 . Scanalyzers . | . . . Garrison Access . | . . . Terminal Hacks 1 | . 1 . Robot Analysis 1 | . 1 . Fabricator Hacks . | . . . Repair Station Hacks . | . . . Recycling Unit Hacks 1 | . 1 . Retrieve Components 1 | . 1 . Scanalyzer . | . . . Garrison Access Hacks . | . . . Unauthorized Hacks 3 | . 3 . Terminals 2 | . 2 . Botnet 1 | . 1 . Skim 1 | . 1 . Fabricators . | . . . Repair Stations . | . . . Recycling Units 1 | . 1 . Reject 1 | . 1 . Scanalyzers . | . . . Garrison Access . | . . . Data Cores Recovered . | . . . Used . | . . . Hacking Detections 4 | . 4 . Full Trace Events 1 | . 1 . Feedback Events . | . . . Feedback Blocked . | . . . Robot Schematics Acquired . | . . . Robots Built . | . . . Authchips . | . . . Time . | . . . Total Robot Build Rating . | . . . Part Schematics Acquired . | . . . Parts Built . | . . . Authchips . | . . . Time . | . . . Total Part Build Rating . | . . . Parts Repaired . | . . . Time . | . . . Parts Recycled . | . . . Recycled Matter . | . . . Retrieved Matter . | . . . Retrieved Components 9 | . 9 . Parts Scanalyzed . | . . . Part Schematics Acquired . | . . . Parts Damaged . | . . . Bothacking | -11 -10 -10 ------------ Run | Yrd Mat Min Used RIF Installer . | . . . Robots Hacked . | . . . Non-combat . | . . . Combat . | . . . Robot Hacks Applied . | . . . Relay Couplers Released . | . . . Fabnet Peak Effective % . | . . . Robots Rewired . | . . . Allies Hacked . | . . . Hacks Repelled . | . . . Allies | -11 -10 -10 -------- Run | Yrd Mat Min Total Allies 4 | . . 4 Largest Group 3 | . . 3 Highest-Rated Group 40 | . . 40 Highest-Rated Ally 31 | . . 31 Total Orders . | . . . Ally Attacks 29 | . . 29 Total Damage 251 | . . 251 Kills 4 | . . 4 Allies Corrupted . | . . . Allies Melted . | . . . Intel | -11 -10 -10 ------- Run | Yrd Mat Min Active Infowar (turns) 284 | 66 218 . Terrain 284 | 66 218 . Robot Analysis Total 1 | . 1 . Derelict Logs Recovered . | . . . Drone Launches . | . . . Drone Recoveries . | . . . Exploration | -11 -10 -10 ------------- Run | Yrd Mat Min Turns Passed 1600 | 163 1064 373 Spaces Moved 785 | 61 524 200 Core 9 | 3 . 6 Treads 754 | 58 524 172 Legs . | . . . Wheels . | . . . Hover 22 | . . 22 Flight . | . . . Fastest Speed 50 | 50 160 80 Average Speed 160 | 154 160 164 Slowest Speed 400 | 160 160 400 Overloaded Moves . | . . . Propulsion Burnouts . | . . . Robots Hopped . | . . . Potential Cave-ins 5 | . . 5 Cave-ins Triggered . | . . . Exploration Rate (%) 46 | 5 85 49 Regions Visited 2 Branch Regions 1 Pre-discovered Areas . | . . . Known Exits Taken . | . . . Unknown Exits Taken 2 | 1 1 . Scrap Searched . | . . . Spaces Dug . | . . . Terrain Destroyed . | . . . Melee . | . . . Projectile . | . . . AOE . | . . . Terrain Rammed . | . . . Walls Destroyed . | . . . Machines Disabled . | . . . Actions | -11 -10 -10 --------- Run | Yrd Mat Min Total 939 | 91 626 222 Wait 4 | . 4 . Move 783 | 60 523 200 Hop . | . . . Pick Up 18 | 2 15 1 Fast Attach 11 | 7 3 1 Attach 5 | . 1 4 Detach . | . . . Swap 3 | . 3 . Drop 7 | . 5 2 Fire 108 | 22 72 14 Melee . | . . . Ram . | . . . Kick . | . . . Crush . | . . . Escape Stasis . | . . . Rewire . | . . . Trap . | . . . Miscellaneous . | . . . Route ------- -11/Scrapyard -10/Materials (discovered 4 exits: [*Mat x2] / [*Min] / [*Sub]) -10/Mines (discovered 1 exit: [*Mat]) History --------- Turn | Location | Event 2 | -11/Scrapyard | Met Revision 17 47 | -11/Scrapyard | Discovered new exit (range 15) 164 | -11/Scrapyard | Entered Materials 314 | -10/Materials | Build established: Mutant 399 | -10/Materials | Discovered new exit (range 15) 411 | -10/Materials | Discovered new exit (range 9) 849 | -10/Materials | Discovered new exit (range 13) 1042 | -10/Materials | Discovered new exit (range 9) 1228 | -10/Materials | Entered Mines 1300 | -10/Mines | Assisted by bots powering up and referring to "LRC-V3" 1381 | -10/Mines | Discovered new exit (range 8) 1492 | -10/Mines | Assembled infested the area 1509 | -10/Mines | Received a Mining Laser from a helpful Derelict 1521 | -10/Mines | Core integrity fell below 50% 1530 | -10/Mines | Core integrity fell below 20% 1551 | -10/Mines | Received a Rocket Launcher from a helpful Derelict 1558 | -10/Mines | Lost 3 allies 1566 | -10/Mines | Lost 7 parts (1p2n1u3w) 1601 | -10/Mines | Destroyed by as-86496 with Assembled F-torch Last Messages --------------- 01550_ PI-63A(g): "Need a small hole in the wall? Leave that to the mining laser wimps, I say!" 01551_ PI-63A(g): "Would you like a rocket launcher? I know I would if I were you, so I'm going to lend you mine." 01551_ PI-63A(g) slips back into the shadows. 01552_ U-05 Engineer lays Concrete. 01556_ U-05 Engineer builds a Wall. 01556_ as-49113 sneak attacks. 01559_ The unstable cave ceiling collapses. 01561_ K-01 Serf collects debris. 01565_ Acquired Cmb. Airjet. 01565_ K-01 Serf collects debris. 01572_ as-49113 sneak attacks. 01572_ K-01 Serf destroyed. 01576_ Knocked back. 01576_ as-80329 destroyed. 01590_ The unstable cave ceiling collapses. 01595_ Dropped Lrg. Storage Unit. 01596_ Acquired 12 matter. Map ----- +----------------------------------------------------+ | ## #?? ??????????????????????????????? | | # ## ?????????????????????????????? | | #????????????????????????????????? | | #?????????????????????????????????? | | #### ####?????????????????????????????????? | | ##?????????????????????????????????????????? | | ##??????????????????????????????????????????? | | ###???????????????????????????????????????????? | | #?????????????????????????????????????????????? | | #?????????????????????????????????????????????? | | #?????????????????????????????????????????????? | | ##?????? ??????????????????????????????????????? | | ???????? ??????????????????????????????????????? | | ???????# ??????????????????????????????????????? | | ???????# ??????????????????????????????????????? | | ???????# #?????????????????????????????????????? | | ???????# #??????????????????????????##?????????? | | ???????# #????????????????????????? ??????????? | | ???????# #???##????????????????### ???????????? | | ???????# ##### #???????######## %####?????????? | | ???????# # # ##????## r % ?????????? | | ?????### =*! ###### a% #???????????? | | ????## [%## !]! u r #????????????? | | ????# *=!# ]! a #??????????????? | | ???## %=%! #!#### ###????????????????? | | ???# !% ]%!# # ## @ ##??????????????????? | | #### =#### # ####$#???????????????????? | | "%" = %! %# # #?? #???????????????????? | | " ##### ###??#???????????????????? | | ##### #???# # ##??????????????????????? | | ????## ##??# # #??????????????????????? | | ?????# #??# ! #??????????????????????? | | ????## #??# # ##??????????????????????? | | ???## #??## #??????????????????????? | | #### ##??## ##??????????????????????? | | ##??## ##???????????????????????? | | ###########????????????????????????? | | ###### ##??????????????????????????????? | | ?????# #??????????????????????????????? | | ?????# #?????????????????????????????? | | ?????# ## #????????????????????????????? | | #????## ##### #???????????????????????????? | | #?????####???## #??????????????????????????? | | #??????????????# #??????????????????????????? | | ????????????????# ##??????????????????????????? | | ?????????????????###???????????????????????????? | | ???????????????????????????????????????????????? | | ???????????????????????????????????????????????? | | ???????????????????????????????????????????????? | | | +----------------------------------------------------+ Best States ------------- Heat Dissipation 25 Energy Generation 10 Energy Capacity 125 Matter Stores 300 Matter Capacity 300 Sight Range 16 Terrain Scan Range 16 Terrain Scan Density 10 Core Shielding 20 Weapon Shielding 33 Evasion (%) 49 Recoil Reduction 2 Item Schematics ----------------- None Robot Schematics ------------------ None Fabricated ------------ Nothing Repaired ---------- Nothing Alien Tech Used ----------------- None Achievements -------------- None Challenges ------------ None Game ------ Seed SeismicFrostBeamcaster Manual? 0 Play Time 00:09:15 Cumulative 540.9 hours Start 2025.08.17 @ 16:18:36 End 2025.08.17 @ 16:25:27 Sessions 1 Manual Loads 0 Difficulty Rogue Special Mode None Game No. 284 Rogue 284 Adventurer 0 Explorer 0 Win Type - Total 6 Types 3/0/1/1/0/0/0/0/0/1 Lore% 86 Gallery% 77 Achievement% 68 Wizard Run 0 Options --------- Layout 2 ASCII 0 Keyboard 1 Movement Vi Keybinds 0 Fullscreen 1 Font 16/Tamsyn Map View 55x47 Zoom Use 0% Tactical HUD 1 Map Filters NONE Filters NONE Steam 0 RUN: 5042b920-30b2-49a1-ae5a-61de0477700f